bitfinex/quotes_ETHUSD_20241216
["timestamp","ask_amount","ask_price","bid_price","bid_amount"]
[1734314514309,2.49801,4003.2,4002.3,0.39001635]
[1734314514310,2.4983,4002.8,4002.3,0.39001635]
[1734314514511,2.4983,4002.8,4002.4,0.07803017]
[1734314514714,3.29912,4003.5,4002.5,0.07803017]
[1734314515011,3.29912,4003.5,4002.6,0.07803017]
[1734314515012,2.49821,4002.9,4002.6,0.07803017]
[1734314515196,2.49787,4003.5,4002.8,0.8194]
[1734314515615,2.4974,4004.2,4002.8,0.8194]
[1734314515801,2.49784,4003.5,4002.9,0.20879525]
[1734314516009,0.7783,4004.4,4002.8,0.8194]
[1734314516010,2.49801,4003.2,4003.0,0.07802387]
[1734314516201,2.49826,4002.8,4002.4,0.7917]
[1734314516538,2.49834,4002.7,4002.5,0.07802975]
[1734314516708,2.49834,4002.7,4002.6,0.07802975]
[1734314517099,0.774,4003.5,4002.6,0.07802975]
[1734314517302,2.49812,4003.0,4002.6,0.07802975]
[1734314517501,2.49787,4003.4,4002.6,0.07802975]
[1734314517810,2.49826,4002.8,4002.6,0.07802975]
[1734314518132,2.49826,4002.8,4002.4,0.7917]
[1734314518342,2.49826,4002.8,4002.5,0.07803263]
[1734314518552,0.774,4003.5,4002.5,0.07803263]
[1734314518553,2.49808,4003.1,4002.5,0.07803263]
[1734314518686,2.49808,4003.1,4002.4,0.7917]
[1734314518892,1.03458352,4003.5,4002.6,0.07803208]
[1734314519093,2.49806,4003.2,4002.7,0.07803208]
[1734314519326,2.49806,4003.2,4002.4,0.7917]
[1734314519488,1.03458352,4003.5,4002.5,0.07802866]
[1734314519716,1.03458352,4003.5,4002.6,0.20400316]
[1734314519893,1.03458352,4003.5,4002.7,0.07802866]
[1734314521107,1.03458352,4003.5,4002.8,0.0780249]
[1734314521625,0.26058352,4003.5,4002.6,0.1259745]
[1734314521796,0.26058352,4003.5,4003.4,0.7576]
[1734314522006,0.26058352,4003.5,4003.4,0.83561833]
[1734314522203,0.7875,4005.1,4003.7,1.99814]
[1734314522423,0.7875,4005.1,4003.8,0.27783233]
[1734314522637,0.7875,4005.1,4003.9,0.07801833]
[1734314522839,0.7875,4005.1,4003.7,1.99814]
[1734314523155,0.7875,4005.1,4003.8,0.07800104]
[1734314523444,0.7875,4005.1,4003.7,1.99814]
[1734314523599,0.7875,4005.1,4003.8,0.07800054]
[1734314523946,0.7875,4005.1,4003.9,0.07799911]
[1734314524215,0.7875,4005.1,4003.8,0.199814]
[1734314524367,0.7875,4005.1,4003.8,2.197904]
[1734314524667,0.7875,4005.1,4004.1,1.99794]
[1734314524878,0.794,4005.5,4004.2,0.36509933]
[1734314525178,0.794,4005.5,4004.0,0.7951]
[1734314525179,0.794,4005.5,4004.3,0.07799527]
[1734314525326,0.794,4005.5,4004.4,0.07799527]
[1734314525528,0.794,4005.5,4004.4,0.20758653]
[1734314525826,0.794,4005.5,4004.5,0.07798872]
[1734314526036,0.794,4005.5,4004.4,1.99779]
[1734314526221,0.794,4005.5,4004.5,0.07799008]
[1734314526429,0.794,4005.5,4004.6,0.077986]
[1734314526649,0.794,4005.5,4004.4,1.99779]
[1734314526650,0.794,4005.5,4004.7,0.2075776]
[1734314527758,0.7709,4005.9,4004.8,0.7541]
[1734314527977,0.7709,4005.9,4004.8,2.75169]
[1734314528386,0.7709,4005.9,4004.9,0.07797885]
[1734314528708,0.7709,4005.9,4004.8,0.7541]
[1734314528991,1.03673032,4006.7,4004.8,0.7541]
[1734314528992,0.7786,4006.3,4004.9,0.07797706]
[1734314529208,0.7786,4006.3,4004.7,1.99761]
[1734314529209,0.7786,4006.8,4005.1,0.7779]
[1734314529495,0.7786,4006.8,4005.2,0.07797706]
[1734314529702,0.7786,4006.8,4005.3,0.07797706]
[1734314529843,0.7786,4006.8,4005.1,0.7779]
[1734314529844,2.49583,4006.7,4005.1,0.7779]
[1734314530048,0.7786,4006.8,4005.2,0.38380701]
[1734314530376,0.7786,4006.8,4005.3,1.99734]
[1734314531186,0.7786,4006.8,4005.1,0.7779]
[1734314531187,0.7786,4006.8,4005.4,0.07796673]
[1734314531405,0.7786,4006.8,4005.6,1.99719]
[1734314531581,0.7786,4006.8,4005.7,0.7518]
[1734314531802,0.7786,4006.8,4005.7,1.026699]
[1734314532799,2.49621,4006.1,4004.8,0.7518]
[1734314533163,0.7548,4006.4,4004.9,1.99754]
[1734314533164,3.25082,4006.4,4004.9,1.99754]
[1734314533489,0.7548,4006.4,4005.0,2.07546491]
[1734314533685,2.49618,4006.2,4005.1,0.28272649]
[1734314533893,2.49618,4006.2,4004.8,2.74939]
[1734314534207,2.49618,4006.2,4004.9,0.07797569]
[1734314534399,0.7548,4006.4,4004.8,0.7518]
[1734314534695,3.25085,4006.4,4005.0,1.99747]
[1734314534903,3.25085,4006.4,4005.1,0.28272442]
[1734314535068,2.49614,4006.2,4005.1,0.28272442]
[1734314535267,2.49614,4006.2,4004.8,0.7518]
[1734314535481,0.7548,4006.4,4004.9,0.07797484]
[1734314535482,2.49621,4006.1,4004.9,0.07797484]
[1734314535685,2.49621,4006.1,4004.8,0.7518]
[1734314535876,2.49621,4006.1,4004.9,0.3529162]
[1734314536078,2.49621,4006.1,4004.9,0.274941]
[1734314536286,2.49629,4006.0,4004.9,0.274941]
[1734314536503,0.7548,4006.4,4004.8,0.7518]
[1734314536705,0.7599,4005.6,4004.8,0.7518]
[1734314538385,0.50927982,4006.5,4004.8,0.7518]
[1734314538386,2.49622,4006.1,4004.8,0.7518]
[1734314538580,2.49628,4006.0,4004.8,0.7518]
[1734314538780,2.49628,4006.0,4004.9,0.274948]
[1734314539105,0.8071,4006.4,4004.9,0.274948]
[1734314539314,2.49647,4005.7,4004.8,0.7518]
[1734314540077,0.50927982,4006.5,4003.9,0.7536]
[1734314540078,0.8071,4005.9,4003.9,0.7536]
[1734314540389,0.8071,4004.9,4003.9,0.7536]
[1734314541313,2.497,4004.8,4003.9,0.7536]
[1734314541636,0.8147,4005.8,4003.9,0.7536]
[1734314541928,2.49683,4005.1,4003.9,0.7536]
[1734314542221,2.49683,4005.1,4004.0,0.275174]
[1734314543217,2.49694,4004.9,4004.0,0.275174]
[1734314544484,2.49696,4004.9,4004.0,0.275174]
[1734314544676,0.49607976,4005.5,4003.9,0.7536]
[1734314545122,2.49684,4005.1,4003.9,0.7536]
[1734314545518,2.49695,4004.9,4003.9,0.7536]
[1734314545718,2.49701,4004.8,4003.9,0.7536]
[1734314546048,2.14797437,4004.4,4003.1,1.03830553]
[1734314546188,0.8042,4004.3,4003.0,0.38985929]
[1734314546523,2.49712,4004.7,4003.4,0.8024]
[1734314546862,1.03673032,4005.5,4003.6,0.8024]
[1734314546863,0.7766,4005.5,4003.6,0.8024]
[1734314547083,1.03673032,4005.8,4004.0,0.8024]
[1734314547084,2.49678,4005.2,4004.0,0.8024]
[1734314547235,0.7766,4005.8,4004.1,0.88040201]
[1734314547435,0.7766,4005.8,4003.6,2.14797437]
[1734314547436,2.49677,4005.2,4004.3,0.803]
[1734314547821,2.49676,4005.2,4004.3,0.803]
[1734314548224,2.49699,4004.9,4004.4,0.07799037]
[1734314548563,2.497,4004.8,4004.3,0.803]
[1734314548958,5.42095437,4005.8,4004.3,0.803]
[1734314548959,2.49676,4005.2,4004.3,0.803]
[1734314549172,2.49676,4005.2,4004.4,0.07799106]
[1734314549485,2.49667,4005.4,4004.5,0.07798912]
[1734314549692,2.49647,4005.7,4004.6,0.88218912]
[1734314549828,2.49647,4005.7,4004.7,0.07798912]
[1734314550033,2.49652,4005.6,4004.8,0.07798912]
[1734314550345,2.49652,4005.6,4004.6,0.8042]
[1734314550561,2.49652,4005.6,4004.7,0.07798363]
[1734314550762,2.49652,4005.6,4004.8,0.07798363]
[1734314551100,2.49652,4005.6,4005.0,0.5067903]
[1734314552264,0.7973,4006.2,4005.0,0.5067903]
[1734314552485,2.49638,4005.8,4005.1,0.0779794]
[1734314552707,0.7973,4006.2,4005.2,0.8636794]
[1734314552907,0.7973,4006.2,4004.0,3.70543267]
[1734314552908,2.49663,4005.4,4004.9,0.8178]
[1734314553553,2.49619,4006.1,4004.9,0.8178]
[1734314553748,2.49619,4006.1,4004.5,0.49501144]
[1734314553749,2.49685,4005.1,4004.5,1.25261144]
[1734314554002,2.49685,4005.1,4004.6,0.07798741]
[1734314554151,2.49685,4005.1,4004.5,0.7576]
[1734314554386,2.49685,4005.1,4004.5,1.26043106]
[1734314554574,2.49685,4005.1,4004.6,0.07799346]
[1734314554775,2.49685,4005.1,4004.5,0.7576]
[1734314554968,0.7761,4005.4,4004.5,0.7576]
[1734314555174,0.7761,4005.4,4004.6,0.07799172]
[1734314555401,0.7761,4005.4,4004.7,0.07799172]
[1734314555599,2.49675,4005.2,4004.5,0.7576]
[1734314555802,2.49675,4005.2,4004.6,0.07798913]
[1734314555983,2.49675,4005.2,4004.5,0.7576]
[1734314555984,2.49675,4005.2,4004.7,0.07798913]
[1734314556324,2.49675,4005.2,4004.5,0.7576]
[1734314556517,2.49675,4005.2,4004.6,0.07799119]
[1734314556827,2.49675,4005.2,4004.5,0.7576]
[1734314557042,2.49675,4005.2,4004.6,0.07799105]
[1734314557339,2.49675,4005.2,4004.5,0.7576]
[1734314557481,2.49675,4005.2,4004.6,0.07799103]
[1734314557779,2.49675,4005.2,4004.5,0.7576]
[1734314557978,2.49675,4005.2,4004.6,0.12513976]
[1734314558291,0.7761,4005.4,4004.5,0.7576]
[1734314558486,2.4969,4005.0,4004.5,0.7576]
[1734314558712,0.7761,4005.4,4004.5,0.7576]
[1734314558713,2.49697,4004.9,4004.5,0.7576]
[1734314560902,0.7761,4005.4,4004.5,0.7576]
[1734314561114,2.49678,4005.2,4004.6,0.07799198]
[1734314561309,2.49682,4005.1,4004.5,0.7576]
[1734314561516,2.49682,4005.1,4004.6,0.07799204]
[1734314561721,2.49681,4005.1,4004.5,0.7576]
[1734314561886,2.49681,4005.1,4004.6,0.07799158]
[1734314562088,2.49681,4005.1,4004.5,0.7576]
[1734314562290,2.49681,4005.1,4004.6,0.07799328]
[1734314562497,2.49689,4005.0,4004.5,0.7576]
[1734314562689,2.49689,4005.0,4004.6,0.07799331]
[1734314562890,2.49689,4005.0,4004.5,0.7576]
[1734314563125,0.7761,4005.4,4004.5,0.7576]
[1734314563126,2.49669,4005.3,4004.6,0.07799346]
[1734314563329,2.49675,4005.2,4004.5,0.7576]
[1734314563628,2.49694,4004.9,4004.5,0.7576]
[1734314563790,0.7761,4005.4,4004.1,0.773]
[1734314563982,2.49685,4005.1,4004.2,0.07799861]
[1734314564182,2.49685,4005.1,4004.3,0.07799861]
[1734314564603,2.4969,4005.0,4004.4,0.07799861]
[1734314564809,2.4969,4005.0,4004.5,0.07799861]
[1734314564992,0.7761,4005.4,4004.1,0.773]
[1734314565195,2.49701,4004.8,4004.2,0.07799443]
[1734314565393,0.7761,4005.4,4004.3,0.07799443]
[1734314565594,2.14797437,4005.3,4004.4,0.07799443]
[1734314565796,0.7761,4005.4,4003.5,1.81130553]
[1734314565797,2.49719,4004.5,4003.5,1.81130553]
[1734314566000,2.49751,4004.0,4003.6,0.07800377]
[1734314566194,2.49751,4004.0,4003.7,0.07800377]
[1734314566418,2.49751,4004.0,4003.8,0.07800377]
[1734314566632,2.49751,4004.0,4003.9,0.07800377]
[1734314567225,2.49714,4004.6,4003.9,0.07800377]
[1734314567226,2.49742,4004.2,4003.9,0.07800377]
[1734314567437,2.49744,4004.1,4003.5,0.773]
[1734314567580,2.49731,4004.4,4004.0,0.07800681]
[1734314567787,0.803,4004.7,4003.5,1.81130553]
[1734314567788,2.4971,4004.7,4003.5,1.81130553]
[1734314568024,3.28622,4005.1,4004.1,0.07800155]
[1734314568231,3.28622,4005.1,4004.2,0.07800155]
[1734314568498,2.49707,4004.7,4004.3,0.07800155]
[1734314568694,2.49707,4004.7,4004.2,0.7584]
[1734314568932,2.49707,4004.7,4004.3,0.07799898]
[1734314569134,0.50609342,4005.6,4004.2,0.7584]
[1734314569135,2.49689,4005.0,4004.4,0.07799898]
[1734314569288,2.49656,4005.5,4004.5,0.07799898]
[1734314569516,2.49691,4005.0,4004.6,0.07799898]
[1734314569819,2.49691,4005.0,4004.7,0.07799898]
[1734314570019,2.494762,4005.5,4004.2,0.7584]
[1734314570020,0.8157,4005.6,4004.8,0.07799898]
[1734314570233,2.4967,4005.3,4004.9,0.07799898]
[1734314570450,2.4967,4005.3,4005.0,0.07798722]
[1734314570864,2.497,4004.9,4004.3,1.21797608]
[1734314571026,2.49719,4004.5,4004.4,0.07799094]
[1734314571554,2.49719,4004.5,4004.2,0.7584]
[1734314571757,1.03673032,4005.5,4004.3,0.07800148]
[1734314571957,2.49682,4005.1,4004.4,0.07800148]
[1734314572142,2.49682,4005.1,4004.5,0.07800148]
[1734314572365,2.49682,4005.1,4004.6,0.07800148]
[1734314572510,2.49688,4005.0,4004.7,0.07800148]
[1734314572710,0.8157,4005.6,4004.8,0.07799201]
[1734314572959,2.49673,4005.3,4004.9,0.07798777]
[1734314573160,2.49673,4005.3,4004.4,0.7736]
[1734314573363,2.49673,4005.3,4004.5,0.07798675]
[1734314573565,2.49673,4005.3,4004.6,0.07798675]
[1734314573764,2.49673,4005.3,4004.7,0.07798675]
[1734314573966,2.49673,4005.3,4004.8,0.07798675]
[1734314574136,2.49673,4005.3,4004.9,0.07798675]
[1734314574336,0.8157,4005.6,4004.4,0.97275761]
[1734314574669,2.49665,4005.4,4004.5,0.0779911]
[1734314574824,2.49665,4005.4,4004.6,0.0779911]
[1734314575024,2.49665,4005.4,4004.7,0.0779911]
[1734314575222,0.8157,4005.6,4004.8,0.0779911]
[1734314575425,2.49652,4005.6,4004.9,0.0779911]
[1734314575775,2.49652,4005.6,4005.0,0.0779911]
[1734314575933,2.49652,4005.6,4005.1,0.0779911]
[1734314576125,2.49652,4005.6,4005.2,0.0779911]
[1734314576444,2.49652,4005.6,4005.3,0.07798025]
[1734314576643,2.49652,4005.6,4004.4,2.7714]
[1734314576845,2.49657,4005.5,4004.5,0.45895181]
[1734314577047,2.49657,4005.5,4004.6,0.07798126]
[1734314577250,2.49657,4005.5,4004.7,0.07798126]
[1734314577432,2.49657,4005.5,4004.4,0.7736]
[1734314577620,1.03673032,4005.9,4004.8,0.07798239]
[1734314577819,0.7606,4006.0,4004.9,0.07798239]
[1734314577820,2.49655,4005.6,4004.9,0.07798239]
[1734314578054,2.49655,4005.6,4005.0,0.07798239]
[1734314578233,2.49655,4005.6,4005.1,0.07798239]
[1734314578433,2.49658,4005.5,4005.2,0.07798239]
[1734314578679,2.49658,4005.5,4004.5,0.277147]
[1734314578967,2.49658,4005.5,4004.6,0.28688683]
[1734314579265,2.49658,4005.5,4004.7,0.07798158]
[1734314579481,2.49658,4005.5,4004.8,0.07798158]
[1734314579624,2.49658,4005.5,4004.9,0.07798158]
[1734314579829,2.49658,4005.5,4005.0,0.07798158]
[1734314580077,2.49658,4005.5,4005.1,0.07798158]
[1734314580254,2.49658,4005.5,4004.5,0.277147]
[1734314580437,2.49658,4005.5,4004.6,0.07798323]
[1734314580785,2.49658,4005.5,4004.7,0.07798323]
[1734314580935,2.49658,4005.5,4004.8,0.07798323]
[1734314581123,2.49658,4005.5,4004.9,0.07798323]
[1734314581323,2.49658,4005.5,4005.0,0.07798323]
[1734314581635,2.49658,4005.5,4004.5,0.277147]
[1734314581636,2.49658,4005.5,4005.1,0.07798323]
[1734314581835,2.49658,4005.5,4005.2,0.07798323]
[1734314582065,2.49658,4005.5,4004.5,0.277147]
[1734314582240,3.53317032,4005.8,4004.7,0.7637]
[1734314582427,2.49644,4005.8,4004.7,0.7637]
[1734314582784,1.03673032,4005.9,4004.8,0.07797999]
[1734314582785,2.49656,4005.5,4004.8,0.07797999]
[1734314583066,2.49682,4005.1,4004.9,0.07797999]
[1734314583272,0.7921,4005.5,4004.7,0.7637]
[1734314583471,5.68743415,4005.4,4004.8,0.07798962]
[1734314583637,5.68743415,4005.4,4004.7,0.7637]
[1734314583638,3.19079415,4005.3,4004.7,0.7637]
[1734314583843,2.49664,4005.4,4004.7,0.7637]
[1734314583844,0.86162553,4005.2,4004.8,0.07799115]
[1734314584074,0.86162553,4005.2,4004.7,0.7637]
[1734314584075,1.03673032,4005.3,4004.7,0.7637]
[1734314584278,3.1898859,4005.3,4004.8,0.07799165]
[1734314584471,2.49689,4005.0,4004.7,0.7637]
[1734314584737,1.03673032,4005.3,4004.8,0.07799088]
[1734314584738,2.49694,4004.9,4004.8,0.07799088]
[1734314584940,1.03673032,4005.3,4004.4,0.7645]
[1734314585141,2.49719,4004.5,4003.9,0.7645]
[1734314585343,2.49719,4004.5,4004.0,0.07799756]
[1734314585512,3.53354032,4005.1,4003.9,0.99365284]
[1734314585513,1.03673032,4005.1,4003.9,0.99365284]
[1734314585845,2.49694,4004.9,4004.0,2.02641521]
[1734314585999,2.49694,4004.9,4004.1,0.37825964]
[1734314586543,1.03673032,4005.3,4004.6,2.14797437]
[1734314586697,2.49614,4006.2,4005.2,0.8252]
[1734314587040,2.49605,4006.4,4005.4,0.7646]
[1734314587259,1.03673032,4006.8,4006.4,0.7646]
[1734314587403,1.03673032,4007.3,4006.7,2.14797437]
[1734314587767,1.03673032,4007.5,4006.8,0.8173]
[1734314587894,1.03673032,4007.6,4006.8,0.8173]
[1734314588529,1.86813032,4008.3,4006.8,0.8173]
[1734314588731,2.49541,4007.4,4006.8,0.8173]
[1734314588948,1.03673032,4008.0,4006.8,0.8173]
[1734314589155,2.49576,4006.8,4006.5,0.811]
[1734314589376,0.7594,4007.4,4006.5,0.811]
[1734314589522,2.49567,4007.0,4006.5,0.811]
[1734314589725,3.34893059,4007.6,4006.5,0.811]
[1734314590045,3.34893059,4007.6,4006.0,0.50111802]
[1734314590046,2.49577,4006.8,4006.2,0.8211]
[1734314590416,1.03673032,4007.4,4006.2,0.8211]
[1734314590638,5.07510927,4007.8,4005.5,0.22627244]
[1734314590639,2.49634,4005.9,4005.5,0.22627244]
[1734314590926,2.4961,4006.3,4005.1,0.8211]
[1734314591159,2.49648,4005.7,4005.1,0.8211]
[1734314591337,2.49651,4005.6,4005.1,0.8211]
[1734314591522,3.30584,4006.5,4004.7,0.7716]
[1734314591723,0.8099,4005.7,4004.7,0.7716]
[1734314592024,2.49699,4004.9,4004.2,0.7716]
[1734314592263,2.49726,4004.4,4004.2,0.7716]
[1734314592475,2.49788,4003.4,4003.2,1.16157462]
[1734314592765,2.49788,4003.4,4003.2,0.38997462]
[1734314592974,0.8099,4003.3,4003.2,0.38997462]
[1734314595077,2.49788,4003.4,4003.2,0.38997462]
[1734314598033,5.83501059,4003.4,4003.2,4.62e-06]
[1734314598231,2.4985,4002.4,4002.3,0.7934]
[1734314598426,2.49859,4002.3,4001.0,0.7934]
[1734314598667,2.49823,4002.9,4001.1,0.7934]
[1734314598933,2.49823,4002.9,4001.0,0.34176414]
[1734314598934,2.49823,4002.9,4001.8,0.7934]
[1734314599547,2.49793,4003.3,4001.8,0.7934]
[1734314599747,2.49793,4003.3,4000.5,0.25]
[1734314599748,2.49905,4001.6,4000.1,1.08505842]
[1734314599976,2.49905,4001.6,4000.3,0.7934]
[1734314600389,2.49859,4002.3,4000.3,0.7934]
[1734314600390,2.49856,4002.3,4000.3,0.7934]
[1734314600538,2.49906,4001.5,4000.3,0.7934]
[1734314600877,2.49928,4001.2,4000.3,0.7934]
[1734314601046,2.49928,4001.2,4000.3,1.03074778]
[1734314601252,0.7562,4001.6,4000.3,1.03074778]
[1734314601577,2.49912,4001.4,4000.3,1.03074778]
[1734314601785,2.49942,4001.0,4000.3,1.03074778]
[1734314601935,2.4992,4001.3,4000.3,0.7934]
[1734314602298,2.49933,4001.1,4000.3,0.7934]
[1734314602431,0.7562,4001.6,4000.3,0.7934]
[1734314602636,2.49915,4001.4,4000.3,0.7934]
[1734314603677,0.7562,4001.6,4000.3,0.7934]
[1734314603882,2.49922,4001.3,4000.3,0.7934]
[1734314604079,2.49928,4001.2,4000.3,0.7934]
[1734314605577,2.58093059,4001.4,4000.3,0.7934]
[1734314605917,2.49972,4000.5,4000.3,0.7934]
[1734314606478,2.49918,4001.3,4000.1,1.08505842]
[1734314606929,0.755,4001.3,4000.1,1.08505842]
[1734314607235,2.49931,4001.1,4000.1,1.08505842]
[1734314607381,2.49969,4000.5,4000.1,1.08505842]
[1734314607845,0.755,4001.3,4000.1,1.08505842]
[1734314607846,2.49925,4001.2,4000.1,1.08505842]
[1734314608047,3.29295,4001.7,4000.2,0.7609]
[1734314608345,2.49946,4000.9,4000.2,0.7609]
[1734314608632,2.49949,4000.9,4000.2,0.7609]
[1734314609119,3.29294,4001.7,4000.2,0.7609]
[1734314610175,2.49927,4001.2,4000.2,0.7609]
[1734314610531,0.8104,4002.5,4000.4,0.7598]
[1734314610716,0.8104,4002.5,4000.6,0.7598]
[1734314611100,3.30885,4002.5,4000.6,0.7598]
[1734314611429,2.49901,4001.6,4000.6,0.7598]
[1734314612009,2.4985,4002.4,4000.6,0.7598]
[1734314612402,2.49901,4001.6,4000.6,0.7598]
[1734314613036,2.4985,4002.4,4000.6,0.7598]
[1734314613440,2.49913,4001.4,4000.6,0.7598]
[1734314613615,2.49913,4001.4,4000.6,0.88513274]
[1734314614146,2.49893,4001.7,4000.6,0.88513274]
[1734314614351,0.8104,4002.5,4000.6,0.88513274]
[1734314614688,2.49868,4002.1,4000.6,0.88513274]
[1734314614844,2.49868,4002.2,4000.6,0.88513274]
[1734314615001,2.49892,4001.8,4000.6,0.88513274]
[1734314615744,2.49868,4002.2,4000.6,0.88513274]
[1734314615964,2.49901,4001.6,4000.6,0.88513274]
[1734314616747,2.49906,4001.5,4000.6,0.88513274]
[1734314616948,2.4985,4002.4,4000.6,0.7598]
[1734314616949,2.49914,4001.4,4000.6,0.7598]
[1734314617265,2.49865,4002.2,4000.6,0.7598]
[1734314617417,2.49885,4001.9,4000.6,0.7598]
[1734314617624,0.8104,4002.5,4000.6,0.7598]
[1734314617625,2.49891,4001.8,4000.6,0.7598]
[1734314618019,2.49877,4002.0,4000.6,2.75947]
[1734314618328,2.49839,4002.6,4001.3,0.8089]
[1734314618731,2.49839,4002.6,4001.4,0.777]
[1734314619324,2.49819,4002.9,4001.4,2.77629]
[1734314619675,0.7983,4003.3,4001.5,0.7546]
[1734314619832,2.49845,4002.5,4001.5,0.7546]
[1734314620421,0.7983,4003.3,4001.5,0.7546]
[1734314620422,2.49853,4002.4,4001.5,0.7546]
[1734314620651,0.7983,4003.3,4001.5,0.7546]
[1734314621024,2.58093059,4002.7,4001.5,0.7546]
[1734314621332,2.49837,4002.6,4001.5,0.7546]
[1734314621533,2.49837,4002.6,4001.6,0.32427525]
[1734314623260,2.49822,4002.9,4001.7,0.7738]
[1734314623865,0.7983,4003.3,4001.7,0.7738]
[1734314624064,2.49806,4003.1,4001.9,0.7738]
[1734314624751,5.83413059,4003.7,4001.9,0.7738]
[1734314624752,2.49817,4003.0,4001.9,0.7738]
[1734314625049,2.49787,4003.5,4001.9,0.7738]
[1734314625252,2.49819,4002.9,4001.9,0.7738]
[1734314625569,2.4982,4002.9,4001.9,0.7738]
[1734314625871,2.4982,4002.9,4002.1,0.50301021]
[1734314626786,3.33643059,4003.7,4002.1,0.50301021]
[1734314626787,0.7555,4003.7,4002.2,0.7738]
[1734314626970,2.49813,4003.0,4002.2,0.7738]
[1734314627972,2.49798,4003.3,4002.2,0.7738]
[1734314628143,2.49795,4003.3,4002.3,0.12768102]
[1734314629241,2.49775,4003.6,4002.3,0.12768102]
[1734314629448,2.49796,4003.3,4002.3,0.12768102]
[1734314630297,2.49796,4003.3,4002.4,0.14044912]
[1734314631587,2.49783,4003.5,4002.4,0.14044912]
[1734314631896,0.12442511,4004.3,4002.4,0.14044912]
[1734314631897,0.7715,4004.8,4002.8,0.8229]
[1734314632188,2.49757,4003.9,4002.8,0.8229]
[1734314632349,2.49724,4004.5,4002.8,0.8229]
[1734314632771,2.49792,4003.4,4002.8,0.8229]
[1734314633001,1.0,4002.9,4002.8,0.8229]
[1734314641368,1.0,4002.9,4002.8,1.105053]
[1734314641968,1.0,4002.9,4002.8,3.103653]
[1734314642168,1.0,4002.9,4002.8,2.8215]
[1734314643167,1.0,4002.9,4002.8,0.8229]
[1734314647707,1.0,4002.9,4002.8,1.9986]
[1734314648017,1.0,4002.9,4002.8,0.7506]
[1734314648223,1.0,4002.9,4002.8,3.039209]
[1734314649222,1.0,4002.9,4002.8,3.53730275]
[1734314650211,1.0,4002.9,4002.8,1.53870275]
[1734314652832,2.49712,4004.6,4003.3,1.99833]
[1734314652994,2.49712,4004.6,4003.5,0.7773]
[1734314653797,0.8204,4004.8,4003.5,0.7773]
[1734314654009,0.831,4005.3,4003.6,4.14767003]
[1734314654204,2.49679,4005.2,4003.7,2.78693]
[1734314654727,2.49679,4005.2,4003.8,0.7888]
[1734314654931,2.49679,4005.2,4003.9,2.491672]
[1734314655090,2.49679,4005.2,4003.9,1.99803]
[1734314655624,1.54002788,4006.3,4003.6,2.14949003]
[1734314655625,2.49661,4005.5,4004.1,0.8174]
[1734314655830,2.49661,4005.5,4004.1,2.81534]
[1734314656325,2.49661,4005.5,4004.2,0.8174]
[1734314656525,2.49661,4005.5,4004.4,0.8174]
[1734314657292,2.49621,4006.1,4005.1,0.50711634]
[1734314657293,0.7758,4006.1,4005.1,0.50711634]
[1734314657596,3.272,4006.1,4005.1,1.32451634]
[1734314658029,2.49604,4006.4,4005.1,1.45696797]
[1734314658239,0.8308,4006.5,4005.2,2.14949003]
[1734314658422,2.49584,4006.7,4005.3,0.76]
[1734314658589,0.8308,4006.8,4005.3,1.3203958]
[1734314659011,2.49595,4006.5,4005.3,1.3203958]
[1734314659984,2.49595,4006.5,4006.0,0.50996138]
[1734314660193,0.765,4006.1,4004.4,0.8214]
[1734314660560,2.49625,4006.0,4004.8,0.50566886]
[1734314660786,0.765,4006.1,4004.8,0.50566886]
[1734314661190,2.49648,4005.7,4004.8,0.50566886]
[1734314665960,0.765,4006.1,4004.8,0.50566886]
[1734314666169,2.4965,4005.6,4004.4,0.8214]
[1734314666363,2.49665,4005.4,4004.4,1.118489]
[1734314666623,0.765,4006.1,4004.4,0.8214]
[1734314666624,2.49671,4005.3,4004.4,0.8214]
[1734314666769,2.49678,4005.2,4004.4,0.8214]
[1734314667607,2.49678,4005.2,4004.4,0.95238135]
[1734314668819,0.7643,4005.4,4004.4,0.95238135]
[1734314668820,3.26093,4005.4,4004.4,0.95238135]
[1734314668976,2.49663,4005.4,4004.4,0.95238135]
[1734314670069,2.49654,4005.6,4004.4,0.95238135]
[1734314671174,2.49658,4005.5,4004.4,0.95238135]
[1734314671781,0.7678,4005.8,4004.4,0.95238135]
[1734314671782,2.49663,4005.4,4004.4,0.95238135]
[1734314673521,0.7678,4005.8,4004.4,0.95238135]
[1734314673725,1.55509548,4007.0,4004.4,0.95238135]
[1734314673726,2.49619,4006.2,4004.6,0.766]
[1734314673877,2.49609,4006.3,4004.9,0.8201]
[1734314675501,0.79,4006.4,4004.9,0.8201]
[1734314675699,0.79,4006.4,4005.2,0.48658399]
[1734314675913,0.79,4006.4,4005.2,0.61725239]
[1734314676227,2.49616,4006.2,4005.2,0.61725239]
[1734314676414,2.49619,4006.1,4005.2,0.61725239]
[1734314677499,0.79,4006.4,4004.9,0.8201]
[1734314677500,2.14949003,4006.3,4004.9,0.8201]
[1734314677711,2.4965,4005.6,4004.9,0.8201]
[1734314678037,2.14949003,4006.3,4004.9,0.8201]
[1734314678038,2.49656,4005.5,4004.9,0.8201]
[1734314678485,2.14949003,4006.3,4004.9,0.8201]
[1734314678486,2.49646,4005.7,4004.9,0.8201]
[1734314678724,2.49681,4005.2,4004.9,0.8201]
[1734314679231,2.49681,4005.2,4004.5,0.8181]
[1734314679656,2.49681,4005.2,4004.6,0.49042676]
[1734314680077,2.49681,4005.2,4004.6,0.63437757]
[1734314680367,2.49685,4005.1,4004.6,0.14395081]
[1734314681229,2.4967,4005.3,4004.6,0.14395081]
[1734314681653,2.4967,4005.3,4004.9,0.4868067]
[1734314682846,0.7811,4006.4,4005.0,0.8107]
[1734314683134,0.7811,4006.4,4005.2,0.8107]
[1734314683340,2.49619,4006.1,4005.2,0.8107]
[1734314685338,2.49592,4006.6,4005.2,0.8107]